fUSD/lending_fUSD_20240105
["ID","MTS","AMOUNT","RATE_DAILY","PERIOD"]
[310293956,1704463922000,-500.0,0.0003178,2]
[310293957,1704463922011,-500.0,0.0003178,2]
[310293958,1704463922022,-610.9,0.0003178,2]
[310293959,1704463922032,-542.23,0.0003178,2]
[310293960,1704463922043,-500.0,0.0003178,2]
[310293961,1704463922056,-512.44505692,0.0003178,2]
[310293962,1704463922066,-500.0,0.0003178,2]
[310293963,1704463922076,-500.0,0.0003178,2]
[310293964,1704463922087,-977.28,0.0003178,2]
[310293965,1704463922097,-500.0,0.0003178,2]
[310293966,1704463922107,-500.0,0.0003178,2]
[310293967,1704463922118,-564.72,0.0003178,2]
[310293968,1704463922129,-500.0,0.0003178,2]
[310293969,1704463922139,-500.0,0.0003178,2]
[310293970,1704463922149,-623.13,0.0003178,2]
[310293971,1704463922159,-265.72352369,0.0003178,2]
[310293972,1704463922169,-500.0,0.0003178,2]
[310293973,1704463922179,-660.13,0.0003178,2]
[310293974,1704463922188,-500.0,0.0003178,2]
[310293975,1704463922198,-1107.9,0.0003178,2]
[310293976,1704463922209,-572.97779004,0.0003178,2]
[310293977,1704463922218,-500.0,0.0003178,2]
[310293978,1704463922229,-500.0,0.0003178,2]
[310293979,1704463922239,-500.0,0.0003178,2]
[310293980,1704463922250,-500.0,0.0003178,2]
[310293981,1704463922260,-500.0,0.0003178,2]
[310293982,1704463922271,-534.02,0.0003178,2]
[310293983,1704463922280,-500.0,0.0003178,2]
[310293984,1704463922290,-1001.59,0.0003178,2]
[310293985,1704463922300,-500.0,0.0003178,2]
[310293986,1704463922311,-500.0,0.0003178,2]
[310293987,1704463922321,-500.0,0.0003178,2]
[310293988,1704463922441,-500.0,0.0003178,2]
[310293989,1704463922450,-500.0,0.0003178,2]
[310293990,1704463922460,-647.78842001,0.0003178,2]
[310293991,1704463922470,-577.73,0.0003178,2]
[310293992,1704463922480,-500.0,0.0003178,2]
[310293993,1704463922490,-515.35,0.0003178,2]
[310293994,1704463922499,-500.0,0.0003178,2]
[310293995,1704463922509,-500.0,0.0003178,2]
[310293996,1704463922519,-500.0,0.0003178,2]
[310293997,1704463922528,-528.01,0.0003178,2]
[310293998,1704463922538,-500.0,0.0003178,2]
[310293999,1704463922548,-500.0,0.0003178,2]
[310294000,1704463922558,-500.0,0.0003178,2]
[310294001,1704463922570,-609.91,0.0003178,2]
[310294002,1704463922582,-549.77528465,0.0003178,2]
[310294003,1704463922592,-631.90960048,0.0003178,2]
[310294004,1704463922603,-3164.14,0.0003178,2]
[310294005,1704463922613,-500.0,0.0003178,2]
[310294006,1704463922622,-500.0,0.0003178,2]
[310294007,1704463922635,-767.51,0.0003178,2]
[310294008,1704463922644,-500.0,0.0003178,2]
[310294009,1704463922653,-500.0,0.0003178,2]
[310294010,1704463922664,-500.0,0.0003178,2]
[310294011,1704463922673,-500.0,0.0003178,2]
[310294012,1704463922683,-500.0,0.0003178,2]
[310294013,1704463922693,-500.0,0.0003178,2]
[310294014,1704463922702,-533.3225112,0.0003178,2]
[310294015,1704463922713,-500.0,0.0003178,2]
[310294016,1704463922724,-500.0,0.0003178,2]
[310294017,1704463922733,-572.23,0.0003178,2]
[310294018,1704463922743,-500.0,0.0003178,2]
[310294019,1704463922753,-587.35692666,0.0003178,2]
[310294020,1704463922763,-454.05704398,0.0003178,2]
[310294021,1704463922773,-1043.05,0.0003178,2]
[310294022,1704463922783,-663.96,0.0003178,2]
[310294023,1704463922793,-500.0,0.0003178,2]
[310294024,1704463922805,-969.42,0.0003178,2]
[310294025,1704463922816,-500.0,0.0003178,2]
[310294026,1704463922826,-493.4071866,0.0003178,2]
[310294027,1704463922836,-500.0,0.0003178,2]
[310294028,1704463922846,-500.0,0.0003178,2]
[310294029,1704463922855,-951.95,0.0003178,2]
[310294030,1704463922864,-500.0,0.0003178,2]
[310294031,1704463922873,-500.0,0.0003178,2]
[310294032,1704463922883,-535.33325554,0.0003178,2]
[310294033,1704463922893,-538.53481859,0.0003178,2]
[310294034,1704463922903,-500.0,0.0003178,2]
[310294035,1704463922913,-500.0,0.0003178,2]
[310294036,1704463922922,-500.0,0.0003178,2]
[310294037,1704463922931,-585.0,0.0003178,2]
[310294038,1704463922941,-795.33,0.0003178,2]
[310294039,1704463922950,-500.0,0.0003178,2]
[310294040,1704463922959,-500.0,0.0003178,2]
[310294041,1704463922969,-500.0,0.0003178,2]
[310294042,1704463922978,-500.0,0.0003178,2]
[310294043,1704463922987,-500.0,0.0003178,2]
[310294044,1704463922996,-500.0,0.0003178,2]
[310294045,1704463923006,-500.0,0.0003178,2]
[310294046,1704463923015,-535.25,0.0003178,2]
[310294047,1704463923024,-573.11,0.0003178,2]
[310294048,1704463923033,-500.0,0.0003178,2]
[310294049,1704463923042,-1278.92,0.0003178,2]
[310294050,1704463923052,-205.50829309,0.0003178,2]
[310294051,1704463923062,-522.9,0.0003178,2]
[310294052,1704463923071,-500.0,0.0003178,2]
[310294053,1704463923080,-500.0,0.0003178,2]
[310294054,1704463923089,-1115.46,0.0003178,2]
[310294055,1704463923098,-503.15,0.0003178,2]
[310294056,1704463923107,-500.0,0.0003178,2]
[310294057,1704463923117,-500.0,0.0003178,2]
[310294058,1704463923127,-500.0,0.0003178,2]
[310294059,1704463923135,-500.0,0.0003178,2]
[310294060,1704463923146,-898.64,0.0003178,2]
[310294061,1704463923156,-500.0,0.0003178,2]
[310294062,1704463923165,-264.36840985,0.0003178,2]
[310294063,1704463923175,-500.0,0.0003178,2]
[310294064,1704463923185,-2197.46,0.0003178,2]
[310294065,1704463923195,-500.0,0.0003178,2]
[310294066,1704463923204,-1050.63,0.0003178,2]
[310294067,1704463923214,-500.0,0.0003178,2]
[310294068,1704463923223,-621.89713745,0.0003178,2]
[310294069,1704463923233,-500.0,0.0003178,2]
[310294070,1704463923243,-512.25,0.0003178,2]
[310294071,1704463923252,-500.0,0.0003178,2]
[310294072,1704463923261,-500.0,0.0003178,2]
[310294073,1704463923271,-652.42,0.0003178,2]
[310294074,1704463923280,-500.0,0.0003178,2]
[310294075,1704463923290,-500.0,0.0003178,2]
[310294076,1704463923299,-500.0,0.0003178,2]
[310294077,1704463923310,-500.96,0.0003178,2]
[310294078,1704463923320,-500.0,0.0003178,2]
[310294079,1704463923330,-500.0,0.0003178,2]
[310294080,1704463923339,-737.52,0.0003178,2]
[310294081,1704463923348,-500.0,0.0003178,2]
[310294082,1704463923357,-500.0,0.0003178,2]
[310294083,1704463923367,-500.0,0.0003178,2]
[310294084,1704463923377,-500.0,0.0003178,2]
[310294085,1704463923386,-500.0,0.0003178,2]
[310294086,1704463923396,-1408.67,0.0003178,2]
[310294087,1704463923405,-500.0,0.0003178,2]
[310294088,1704463923415,-500.0,0.0003178,2]
[310294089,1704463923425,-519.09,0.0003178,2]
[310294090,1704463923434,-500.0,0.0003178,2]
[310294091,1704463923443,-512.70559854,0.0003178,2]
[310294092,1704463923453,-500.0,0.0003178,2]
[310294093,1704463923463,-500.0,0.0003178,2]
[310294094,1704463923473,-500.0,0.0003178,2]
[310294095,1704463923482,-500.0,0.0003178,2]
[310294096,1704463923491,-500.0,0.0003178,2]
[310294097,1704463923501,-1017.17,0.0003178,2]
[310294098,1704463923510,-500.0,0.0003178,2]
[310294099,1704463923519,-500.0,0.0003178,2]
[310294100,1704463923529,-500.0,0.0003178,2]
[310294101,1704463923539,-500.0,0.0003178,2]
[310294102,1704463923549,-1228.15,0.0003178,2]
[310294103,1704463923560,-1193.22,0.0003178,2]
[310294104,1704463923569,-500.0,0.0003178,2]
[310294105,1704463923579,-500.0,0.0003178,2]
[310294106,1704463923588,-500.0,0.0003178,2]
[310294107,1704463923598,-1709.82,0.0003178,2]
[310294108,1704463923607,-500.0,0.0003178,2]
[310294109,1704463923617,-500.0,0.0003178,2]
[310294110,1704463923627,-500.0,0.0003178,2]
[310294111,1704463923636,-500.0,0.0003178,2]
[310294112,1704463923646,-521.26,0.0003178,2]
[310294113,1704463923656,-500.0,0.0003178,2]
[310294114,1704463923666,-1009.32,0.0003178,2]
[310294115,1704463923675,-769.11,0.0003178,2]
[310294116,1704463923685,-500.0,0.0003178,2]
[310294117,1704463923694,-614.89916683,0.0003178,2]
[310294118,1704463923704,-952.84,0.0003178,2]
[310294119,1704463923714,-500.0,0.0003178,2]
[310294120,1704463923723,-500.0,0.0003178,2]
[310294121,1704463923734,-500.0,0.0003178,2]
[310294122,1704463923743,-634.11,0.0003178,2]
[310294123,1704463923753,-500.0,0.0003178,2]
[310294124,1704463923762,-1188.9,0.0003178,2]
[310294125,1704463923772,-558.13,0.0003178,2]
[310294126,1704463923780,-500.0,0.0003178,2]
[310294127,1704463923789,-773.34,0.0003178,2]
[310294128,1704463923798,-500.0,0.0003178,2]
[310294129,1704463923809,-500.0,0.0003178,2]
[310294130,1704463923819,-500.0,0.0003178,2]
[310294131,1704463923830,-881.16,0.0003178,2]
[310294132,1704463923840,-500.0,0.0003178,2]
[310294133,1704463923850,-500.0,0.0003178,2]
[310294134,1704463923860,-500.0,0.0003178,2]
[310294135,1704463923870,-500.0,0.0003178,2]
[310294136,1704463923879,-1431.77,0.0003178,2]
[310294137,1704463923888,-500.0,0.0003178,2]
[310294138,1704463923897,-798.14,0.0003178,2]
[310294139,1704463923907,-500.0,0.0003178,2]
[310294140,1704463923916,-2061.68,0.0003178,2]
[310294141,1704463923926,-500.0,0.0003178,2]
[310294142,1704463923935,-500.0,0.0003178,2]
[310294143,1704463923944,-909.7,0.0003178,2]
[310294144,1704463923953,-500.0,0.0003178,2]
[310294145,1704463923962,-500.0,0.0003178,2]
[310294146,1704463923972,-1481.56,0.0003178,2]
[310294147,1704463923981,-500.0,0.0003178,2]
[310294148,1704463923991,-500.0,0.0003178,2]
[310294149,1704463924002,-1575.41,0.0003178,2]
[310294150,1704463924013,-500.0,0.0003178,2]
[310294151,1704463924023,-982.39,0.0003178,2]
[310294152,1704463924032,-500.39,0.0003178,2]
[310294153,1704463924042,-500.0,0.0003178,2]
[310294154,1704463924052,-500.0,0.0003178,2]
[310294155,1704463924068,-500.0,0.0003178,2]
[310294156,1704463924077,-500.0,0.0003178,2]
[310294157,1704463924087,-616.4,0.0003178,2]
[310294158,1704463924096,-656.28,0.0003178,2]
[310294159,1704463924106,-500.0,0.0003178,2]
[310294160,1704463924116,-615.45,0.0003178,2]
[310294161,1704463924125,-815.67,0.0003178,2]
[310294162,1704463924134,-855.97,0.0003178,2]
[310294163,1704463924143,-500.0,0.0003178,2]
[310294164,1704463924152,-500.0,0.0003178,2]
[310294165,1704463924162,-914.92,0.0003178,2]
[310294166,1704463924171,-570.23117359,0.0003178,2]
[310294167,1704463924180,-759.49,0.0003178,2]
[310294168,1704463924194,-612.52,0.0003178,2]
[310294169,1704463924203,-500.0,0.0003178,2]
[310294170,1704463924212,-638.72,0.0003178,2]
[310294171,1704463924222,-647.74875898,0.0003178,2]
[310294172,1704463924231,-500.0,0.0003178,2]
[310294173,1704463924240,-500.0,0.0003178,2]
[310294174,1704463924250,-500.0,0.0003178,2]
[310294175,1704463924261,-500.0,0.0003178,2]
[310294176,1704463924271,-779.76,0.0003178,2]
[310294177,1704463924280,-500.0,0.0003178,2]
[310294178,1704463924291,-1184.83,0.0003178,2]
[310294179,1704463924301,-1087.44,0.0003178,2]
[310294180,1704463924313,-547.36,0.0003178,2]
[310294181,1704463924323,-500.0,0.0003178,2]
[310294182,1704463924332,-500.0,0.0003178,2]
[310294183,1704463924342,-908.56,0.0003178,2]
[310294184,1704463924352,-500.0,0.0003178,2]
[310294185,1704463924361,-500.0,0.0003178,2]
[310294186,1704463924371,-500.0,0.0003178,2]
[310294187,1704463924381,-5038.11,0.0003178,2]
[310294188,1704463924391,-500.0,0.0003178,2]
[310294189,1704463924400,-884.22,0.0003178,2]
[310294190,1704463924410,-880.69,0.0003178,2]
[310294191,1704463924421,-500.0,0.0003178,2]
[310294192,1704463924430,-828.3,0.0003178,2]
[310294193,1704463924440,-500.0,0.0003178,2]
[310294194,1704463924450,-500.0,0.0003178,2]
[310294195,1704463924461,-1954.72,0.0003178,2]
[310294196,1704463924471,-500.0,0.0003178,2]
[310294197,1704463924481,-1200.04,0.0003178,2]
[310294198,1704463924491,-500.0,0.0003178,2]
[310294199,1704463924501,-500.0,0.0003178,2]
[310294200,1704463924511,-964.87,0.0003178,2]
[310294201,1704463924520,-500.0,0.0003178,2]
[310294202,1704463924530,-1145.56,0.0003178,2]
[310294203,1704463924540,-500.0,0.0003178,2]
[310294204,1704463924549,-794.58,0.0003178,2]
[310294205,1704463924562,-534.82,0.0003178,2]
[310294206,1704463924572,-855.41,0.0003178,2]
[310294207,1704463924582,-500.0,0.0003178,2]
[310294208,1704463924592,-773.85,0.0003178,2]
[310294209,1704463924601,-462.64328855,0.0003178,2]
[310294210,1704463924611,-500.0,0.0003178,2]
[310294211,1704463924623,-500.0,0.0003178,2]
[310294212,1704463924632,-1238.16,0.0003178,2]
[310294213,1704463924642,-500.0,0.0003178,2]
[310294214,1704463924652,-3690.73,0.0003178,2]
[310294215,1704463924663,-500.0,0.0003178,2]
[310294216,1704463924673,-500.0,0.0003178,2]
[310294217,1704463924682,-500.0,0.0003178,2]
[310294218,1704463924692,-500.0,0.0003178,2]
[310294219,1704463924702,-692.03,0.0003178,2]
[310294220,1704463924713,-500.0,0.0003178,2]
[310294221,1704463924722,-559.53,0.0003178,2]
[310294222,1704463924731,-500.0,0.0003178,2]
[310294223,1704463924741,-500.0,0.0003178,2]
[310294224,1704463924750,-500.0,0.0003178,2]
[310294225,1704463924759,-500.0,0.0003178,2]
[310294226,1704463924769,-500.0,0.0003178,2]
[310294227,1704463924778,-500.0,0.0003178,2]
[310294228,1704463924788,-500.0,0.0003178,2]
[310294229,1704463924797,-654.46,0.0003178,2]
[310294230,1704463924809,-954.52,0.0003178,2]
[310294231,1704463924818,-763.63,0.0003178,2]
[310294232,1704463924827,-511.23,0.0003178,2]
[310294233,1704463924836,-1216.82,0.0003178,2]
[310294234,1704463924846,-876.69,0.0003178,2]
[310294235,1704463924856,-500.0,0.0003178,2]
[310294236,1704463924866,-1777.29,0.0003178,2]
[310294237,1704463924875,-500.0,0.0003178,2]
[310294238,1704463924885,-500.0,0.0003178,2]
[310294239,1704463924894,-813.3,0.0003178,2]
[310294240,1704463924904,-1082.13,0.0003178,2]
[310294241,1704463924913,-677.81,0.0003178,2]
[310294242,1704463924923,-1325.23,0.0003178,2]
[310294243,1704463924932,-500.0,0.0003178,2]
[310294244,1704463924942,-500.0,0.0003178,2]
[310294245,1704463924951,-500.0,0.0003178,2]
[310294246,1704463924960,-3298.71,0.0003178,2]
[310294247,1704463924970,-500.0,0.0003178,2]
[310294248,1704463924979,-500.0,0.0003178,2]
[310294249,1704463924988,-798.97,0.0003178,2]
[310294250,1704463924998,-500.0,0.0003178,2]
[310294251,1704463925007,-500.0,0.0003178,2]
[310294252,1704463925017,-900.8,0.0003178,2]
[310294253,1704463925026,-500.0,0.0003178,2]
[310294254,1704463925037,-1067.2,0.0003178,2]
[310294255,1704463925047,-2016.59,0.0003178,2]
[310294256,1704463925059,-500.0,0.0003178,2]
[310294257,1704463925069,-752.23,0.0003178,2]
[310294258,1704463925079,-1251.67,0.0003178,2]
[310294259,1704463925090,-408.70269565,0.0003178,2]
[310294260,1704463925099,-811.52,0.0003178,2]
[310294261,1704463925110,-500.0,0.0003178,2]
[310294262,1704463925119,-8654.29,0.0003178,2]
[310294263,1704463925129,-500.0,0.0003178,2]
[310294264,1704463925139,-500.0,0.0003178,2]
[310294265,1704463925150,-618.85336831,0.0003178,2]
[310294266,1704463925160,-500.0,0.0003178,2]
[310294267,1704463925171,-909.25,0.0003178,2]
[310294268,1704463925181,-511.88,0.0003178,2]
[310294269,1704463925192,-952.02,0.0003178,2]
[310294270,1704463925202,-963.43,0.0003178,2]
[310294271,1704463925212,-500.0,0.0003178,2]
[310294272,1704463925222,-500.0,0.0003178,2]
[310294273,1704463925232,-1293.97,0.0003178,2]
[310294274,1704463925243,-500.0,0.0003178,2]
[310294275,1704463925253,-2290.16,0.0003178,2]
[310294276,1704463925263,-5023.74,0.0003178,2]
[310294277,1704463925272,-960.97,0.0003178,2]
[310294278,1704463925283,-1316.73,0.0003178,2]
[310294279,1704463925293,-500.0,0.0003178,2]
[310294280,1704463925303,-500.0,0.0003178,2]
[310294281,1704463925316,-500.0,0.0003178,2]
[310294282,1704463925325,-500.0,0.0003178,2]
[310294283,1704463925335,-500.0,0.0003178,2]
[310294284,1704463925345,-500.0,0.0003178,2]
[310294285,1704463925355,-2888.44,0.0003178,2]
[310294286,1704463925364,-500.0,0.0003178,2]
[310294287,1704463925374,-780.49,0.0003178,2]
[310294288,1704463925383,-213.57,0.0003178,2]
[310294289,1704463925392,-873.53,0.0003178,2]
[310294290,1704463925401,-840.85,0.0003178,2]
[310294291,1704463925409,-552.42,0.0003178,2]
[310294292,1704463925419,-500.0,0.0003178,2]
[310294293,1704463925428,-500.0,0.0003178,2]
[310294294,1704463925438,-17362.55,0.0003178,2]
[310294295,1704463925447,-2346.84,0.0003178,2]
[310294296,1704463925457,-1000.0,0.0003178,2]
[310294297,1704463925468,-211.44841171,0.0003178,2]
[310294298,1704463925478,-4809.34,0.0003178,2]
[310294299,1704463925487,-607.5,0.0003178,2]
[310294300,1704463925497,-619.58,0.0003178,2]
[310294301,1704463925507,-539.06,0.0003178,2]
[310294302,1704463925516,-500.0,0.0003178,2]
[310294303,1704463925526,-500.0,0.0003178,2]
[310294304,1704463925535,-500.0,0.0003178,2]
[310294305,1704463925546,-500.0,0.0003178,2]
[310294306,1704463925555,-9463.24,0.0003178,2]
[310294307,1704463925567,-500.0,0.0003178,2]
[310294308,1704463925578,-500.0,0.0003178,2]
[310294309,1704463925587,-228.5456777,0.0003178,2]
[310294310,1704463925597,-4907.15,0.0003178,2]
[310294311,1704463925606,-4324.26,0.0003178,2]
[310294312,1704463925616,-2724.92,0.0003178,2]
[310294313,1704463925626,-11882.1,0.0003178,2]
[310294314,1704463925636,-746.12,0.0003178,2]
[310294315,1704463925645,-845.63,0.0003178,2]
[310294316,1704463925655,-500.0,0.0003178,2]
[310294317,1704463925665,-500.0,0.0003178,2]
[310294318,1704463925675,-500.0,0.0003178,2]
[310294319,1704463925686,-500.0,0.0003178,2]
[310294320,1704463925697,-3292.08,0.0003178,2]
[310294321,1704463925706,-500.0,0.0003178,2]
[310294322,1704463925717,-500.0,0.0003178,2]
[310294323,1704463925727,-596.41229064,0.0003178,2]
[310294324,1704463925737,-500.0,0.0003178,2]
[310294325,1704463925747,-918.77,0.0003178,2]
[310294326,1704463925757,-644.83,0.0003178,2]
[310294327,1704463925767,-3344.35,0.0003178,2]
[310294328,1704463925777,-1395.08,0.0003178,2]
[310294329,1704463925787,-500.0,0.0003178,2]
[310294330,1704463925797,-500.0,0.0003178,2]
[310294331,1704463925808,-500.0,0.0003178,2]
[310294332,1704463925818,-500.0,0.0003178,2]
[310294333,1704463925828,-500.0,0.0003178,2]
[310294334,1704463925838,-613.87,0.0003178,2]
[310294335,1704463925847,-500.0,0.0003178,2]
[310294336,1704463925857,-1259.17,0.0003178,2]
[310294337,1704463925866,-2954.54,0.0003178,2]
[310294338,1704463925876,-500.0,0.0003178,2]
[310294339,1704463925886,-737.12,0.0003178,2]
[310294340,1704463925896,-2366.41,0.0003178,2]
[310294341,1704463925905,-500.0,0.0003178,2]
[310294342,1704463925915,-500.0,0.0003178,2]
[310294343,1704463925924,-5440.99,0.0003178,2]
[310294344,1704463925934,-500.0,0.0003178,2]
[310294345,1704463925944,-500.0,0.0003178,2]
[310294346,1704463925954,-3361.08,0.0003178,2]
[310294347,1704463925964,-1558.45,0.0003178,2]
[310294348,1704463925974,-500.0,0.0003178,2]
[310294349,1704463925984,-500.0,0.0003178,2]
[310294350,1704463925993,-1062.83,0.0003178,2]
[310294351,1704463926002,-508.36072732,0.0003178,2]
[310294352,1704463926012,-500.0,0.0003178,2]
[310294353,1704463926022,-812.59,0.0003178,2]
[310294354,1704463926032,-646.75,0.0003178,2]
[310294355,1704463926042,-500.0,0.0003178,2]
[310294356,1704463926052,-1323.29,0.0003178,2]
[310294357,1704463926062,-500.0,0.0003178,2]
[310294358,1704463926071,-16516.01,0.0003178,2]
[310294359,1704463926081,-747.13,0.0003178,2]
[310294360,1704463926091,-8220.31,0.0003178,2]
[310294361,1704463926102,-500.0,0.0003178,2]
[310294362,1704463926112,-256.29764662,0.0003178,2]
[310294363,1704463926122,-500.0,0.0003178,2]
[310294364,1704463926132,-1218.24,0.0003178,2]
[310294365,1704463926141,-678.9,0.0003178,2]
[310294366,1704463926151,-509.33,0.0003178,2]
[310294367,1704463926161,-1093.85,0.0003178,2]
[310294368,1704463926170,-500.0,0.0003178,2]
[310294369,1704463926180,-500.0,0.0003178,2]
[310294370,1704463926190,-625.64,0.0003178,2]
[310294371,1704463926199,-500.0,0.0003178,2]
[310294372,1704463926209,-521.80694885,0.0003178,2]
[310294373,1704463926219,-500.0,0.0003178,2]
[310294374,1704463926228,-528.93,0.0003178,2]
[310294375,1704463926237,-1229.71,0.0003178,2]
[310294376,1704463926247,-500.0,0.0003178,2]
[310294377,1704463926256,-500.0,0.0003178,2]
[310294378,1704463926266,-500.0,0.0003178,2]
[310294379,1704463926276,-500.0,0.0003178,2]
[310294380,1704463926285,-696.27,0.0003178,2]
[310294381,1704463926295,-500.0,0.0003178,2]
[310294382,1704463926305,-906.38,0.0003178,2]
[310294383,1704463926316,-500.0,0.0003178,2]
[310294384,1704463926325,-500.0,0.0003178,2]
[310294385,1704463926335,-1228.93,0.0003178,2]
[310294386,1704463926345,-500.0,0.0003178,2]
[310294387,1704463926354,-1479.47,0.0003178,2]
[310294388,1704463926363,-542.9462762,0.0003178,2]
[310294389,1704463926373,-1060.36,0.0003178,2]
[310294390,1704463926383,-1559.68,0.0003178,2]
[310294391,1704463926393,-500.0,0.0003178,2]
[310294392,1704463926403,-541.65671062,0.0003178,2]
[310294393,1704463926413,-535.98,0.0003178,2]
[310294394,1704463926422,-1024.05,0.0003178,2]
[310294395,1704463926432,-223.06622902,0.0003178,2]
[310294396,1704463926441,-500.0,0.0003178,2]
[310294397,1704463926451,-20552.87,0.0003178,2]
[310294398,1704463926461,-732.24,0.0003178,2]
[310294399,1704463926471,-500.0,0.0003178,2]
[310294400,1704463926482,-764.89,0.0003178,2]
[310294401,1704463926492,-500.0,0.0003178,2]
[310294402,1704463926502,-1384.47,0.0003178,2]
[310294403,1704463926513,-2343.7,0.0003178,2]
[310294404,1704463926523,-500.0,0.0003178,2]
[310294405,1704463926533,-855.82,0.0003178,2]
[310294406,1704463926542,-1443.03,0.0003178,2]
[310294407,1704463926552,-500.0,0.0003178,2]
[310294408,1704463926564,-321.1,0.0003178,2]
[310294409,1704463926574,-1467.75,0.0003178,2]
[310294410,1704463926584,-500.0,0.0003178,2]
[310294411,1704463926595,-2427.76,0.0003178,2]
[310294412,1704463926604,-500.0,0.0003178,2]
[310294413,1704463926614,-179.00958354,0.0003178,2]
[310294414,1704463926627,-500.0,0.0003178,2]
[310294415,1704463926637,-1262.81,0.0003178,2]
[310294416,1704463926647,-502.15,0.0003178,2]
[310294417,1704463926657,-976.69,0.0003178,2]
[310294418,1704463926669,-963.68,0.0003178,2]
[310294419,1704463926679,-500.0,0.0003178,2]
[310294420,1704463926690,-1404.49,0.0003178,2]
[310294421,1704463926700,-500.0,0.0003178,2]
[310294422,1704463926711,-1710.42,0.0003178,2]
[310294423,1704463926721,-1043.98,0.0003178,2]
[310294424,1704463926732,-827.77,0.0003178,2]
[310294425,1704463926742,-500.0,0.0003178,2]
[310294426,1704463926752,-500.0,0.0003178,2]
[310294427,1704463926762,-670.86,0.0003178,2]
[310294428,1704463926773,-552.27,0.0003178,2]
[310294429,1704463926783,-2031.67,0.0003178,2]
[310294430,1704463926793,-500.0,0.0003178,2]
[310294431,1704463926804,-500.0,0.0003178,2]
[310294432,1704463926815,-737.13,0.0003178,2]
[310294433,1704463926825,-593.61,0.0003178,2]
[310294434,1704463926834,-7439.39,0.0003178,2]
[310294435,1704463926844,-973.07,0.0003178,2]
[310294436,1704463926854,-563.27,0.0003178,2]
[310294437,1704463926864,-585.98,0.0003178,2]
[310294438,1704463926874,-500.0,0.0003178,2]
[310294439,1704463926884,-878.72,0.0003178,2]
[310294440,1704463926893,-500.0,0.0003178,2]
[310294441,1704463926903,-1022.6,0.0003178,2]
[310294442,1704463926913,-500.0,0.0003178,2]
[310294443,1704463926923,-1959.09,0.0003178,2]
[310294444,1704463926934,-732.57,0.0003178,2]
[310294445,1704463926943,-11053.17,0.0003178,2]
[310294446,1704463926953,-553.87815018,0.0003178,2]
[310294447,1704463926963,-757.66,0.0003178,2]
[310294448,1704463926973,-500.0,0.0003178,2]
[310294449,1704463926983,-500.0,0.0003178,2]
[310294450,1704463926993,-511.54,0.0003178,2]
[310294451,1704463927003,-500.0,0.0003178,2]
[310294452,1704463927012,-1241.64,0.0003178,2]
[310294453,1704463927022,-3419.36,0.0003178,2]
[310294454,1704463927032,-1092.45,0.0003178,2]
[310294455,1704463927042,-2084.07,0.0003178,2]